bitfinex-derivatives/quotes_ETHF0:USTF0_20250910
["timestamp","ask_amount","ask_price","bid_price","bid_amount"]
[1757520662693,0.4127,4389.7,4389.6,0.7135]
[1757520663294,0.4127,4389.7,4389.6,0.5101]
[1757520663597,0.5845,4389.7,4389.6,0.3031]
[1757520664095,3.4408,4390.2,4389.6,0.7135]
[1757520664296,3.6563,4390.2,4390.1,0.5101]
[1757520664592,3.8535,4390.2,4390.1,0.5101]
[1757520665287,4.0253,4390.2,4390.1,0.3031]
[1757520666489,0.4127,4389.7,4389.5,0.1248]
[1757520666694,0.4127,4389.7,4389.6,0.3031]
[1757520666897,0.4127,4389.7,4389.6,0.5101]
[1757520667498,0.4127,4389.7,4389.6,0.7135]
[1757520667696,0.233,4389.8,4389.6,0.7135]
[1757520668001,0.2155,4389.7,4389.6,0.4104]
[1757520668202,0.4127,4389.7,4389.6,0.4104]
[1757520668500,0.4127,4389.7,4389.6,0.7135]
[1757520668899,0.2155,4389.7,4389.6,0.7135]
[1757520669109,0.233,4389.8,4389.6,0.4104]
[1757520669404,0.233,4389.8,4389.7,0.3031]
[1757520669605,0.233,4389.8,4389.7,0.7135]
[1757520669799,0.4485,4389.8,4389.7,0.7135]
[1757520670600,0.233,4389.8,4389.7,0.7135]
[1757520672112,3.2078,4390.2,4390.1,0.4104]
[1757520672302,3.2078,4390.2,4390.1,0.7135]
[1757520672503,3.4233,4390.2,4390.1,0.7135]
[1757520672705,3.651,4390.2,4390.1,0.7135]
[1757520673207,3.8482,4390.2,4390.1,0.7135]
[1757520673418,4.02,4390.2,4390.1,0.3031]
[1757520673708,4.02,4390.2,4390.1,0.7135]
[1757520673709,3.8482,4390.2,4390.1,0.7135]
[1757520675807,3.651,4390.2,4390.1,0.7135]
[1757520677015,3.8482,4390.2,4390.1,0.7135]
[1757520677212,4.02,4390.2,4389.6,0.3031]
[1757520679907,0.5845,4389.7,4389.6,0.3031]
[1757520681913,0.5845,4389.7,4389.6,0.5101]
[1757520682519,0.4127,4389.7,4389.6,0.5101]
[1757520682715,0.4127,4389.7,4389.6,0.7135]
[1757520682921,3.4355,4390.2,4390.1,0.4104]
[1757520683220,0.6762,4390.2,4390.1,0.7135]
[1757520683421,0.8734,4390.2,4390.1,0.7135]
[1757520684425,4.253,4390.2,4390.1,0.3031]
[1757520684722,4.253,4390.2,4389.6,0.3031]
[1757520684922,0.5845,4389.7,4389.6,0.3031]
[1757520686014,0.5845,4389.7,4389.6,0.5101]
[1757520686320,1.16864695,4389.7,4389.6,0.5101]
[1757520686817,0.99684695,4389.7,4389.6,0.7135]
[1757520687820,0.99684695,4389.7,4388.9,3.2078]
[1757520688119,0.98084695,4389.6,4389.5,0.8284]
[1757520688324,0.58414695,4389.6,4389.5,0.8284]
[1757520689914,0.58414695,4389.6,4389.5,1.05620999]
[1757520690614,0.81194695,4389.6,4389.5,1.05620999]
[1757520690817,0.81194695,4389.6,4389.5,0.8284]
[1757520691119,0.2278,4389.6,4389.5,5.46614999]
[1757520691821,0.2278,4389.6,4389.5,5.23834]
[1757520692123,0.2278,4389.6,4389.5,5.46614999]
[1757520692722,0.2278,4389.6,4389.5,5.23834]
[1757520692921,3.6363,4390.7,4390.6,0.7089]
[1757520693117,4.20721389,4390.7,4390.6,0.7089]
[1757520693725,4.40841389,4390.7,4390.6,0.7089]
[1757520693923,4.71531389,4390.7,4390.6,0.7089]
[1757520694226,4.71531389,4390.7,4390.6,0.4971]
[1757520694227,4.48231389,4390.7,4390.6,0.4971]
[1757520694426,4.48231389,4390.7,4390.6,0.7089]
[1757520696324,3.77871389,4390.7,4390.6,0.7089]
[1757520696519,3.4408,4391.2,4391.0,0.1195]
[1757520696824,4.1444,4391.2,4391.1,0.7089]
[1757520697022,4.71346947,4391.2,4391.1,0.7089]
[1757520697422,4.20536947,4391.2,4391.1,0.7089]
[1757520697624,0.233,4391.2,4391.1,0.7089]
[1757520697924,3.7477,4391.7,4391.2,0.2925]
[1757520698225,0.5688569,4391.6,4391.5,0.8284]
[1757520698416,3.6363,4391.7,4391.6,0.7089]
[1757520698620,0.9970306,4391.7,4391.6,0.7089]
[1757520698819,0.233,4391.7,4391.6,0.7089]
[1757520699217,0.6297,4391.7,4391.6,0.7089]
[1757520699420,1.19791111,4391.7,4391.1,0.2925]
[1757520699622,0.7036,4391.2,4391.1,0.4971]
[1757520700029,3.9114,4391.2,4390.6,0.2925]
[1757520700822,3.9114,4391.2,4390.1,0.2925]
[1757520701028,0.1955,4390.2,4390.1,0.7089]
[1757520702126,0.7036,4390.2,4390.1,0.7089]
[1757520702329,0.7036,4390.2,4390.1,0.4971]
[1757520702927,0.3967,4390.2,4389.6,0.2925]
[1757520703127,0.3967,4389.7,4389.6,0.4971]
[1757520703332,0.7036,4389.7,4389.6,0.4971]
[1757520703529,0.7036,4389.7,4389.6,0.7089]
[1757520704225,0.7036,4389.7,4389.3,3.2078]
[1757520704427,0.3069,4389.6,4389.4,0.2925]
[1757520704626,0.3967,4389.4,4389.3,3.9167]
[1757520705327,0.7036,4389.4,4389.3,3.9167]
[1757520706228,0.3967,4389.4,4389.1,0.2925]
[1757520706432,0.7036,4388.9,4388.8,3.2078]
[1757520706929,0.7036,4388.9,4388.8,3.7049]
[1757520707433,0.7036,4388.9,4388.8,3.9167]
[1757520707434,0.3967,4388.9,4388.8,3.9167]
[1757520707727,0.3967,4388.9,4388.8,0.7089]
[1757520707929,0.3967,4388.9,4388.0,0.1195]
[1757520707930,0.3967,4388.1,4388.0,0.412]
[1757520708236,0.7036,4388.1,4388.0,0.4971]
[1757520708429,0.3967,4388.1,4388.0,0.8284]
[1757520708727,0.1955,4388.1,4388.0,0.8284]
[1757520708930,3.2078,4388.3,4388.1,0.2925]
[1757520709230,3.2078,4388.3,4388.2,0.7089]
[1757520709421,0.4285,4388.6,4388.5,0.8284]
[1757520709828,0.1955,4388.6,4388.5,0.8284]
[1757520710835,0.7036,4388.5,4388.4,0.2046]
[1757520711135,0.7036,4388.5,4388.4,0.2925]
[1757520711435,0.7036,4388.5,4388.4,0.4971]
[1757520711732,0.3967,4388.5,4388.4,0.7089]
[1757520711929,0.1955,4388.5,4388.4,0.7089]
[1757520712626,3.6363,4388.8,4388.7,0.2046]
[1757520712832,3.6363,4388.8,4388.7,0.7089]
[1757520713124,3.8385,4388.8,4388.7,0.7089]
[1757520714826,4.1454,4388.8,4388.1,0.2925]
[1757520716022,4.1454,4388.8,4387.7,3.2078]
[1757520716229,0.3967,4387.6,4387.5,0.8284]
[1757520717031,0.3967,4387.6,4387.5,0.4971]
[1757520717228,0.6983,4387.6,4387.5,0.4971]
[1757520717425,0.1955,4387.6,4387.5,0.8333]
[1757520717626,0.234,4388.0,4387.6,0.3014]
[1757520717828,0.6334,4388.0,4387.9,0.7182]
[1757520718328,0.4294,4388.1,4388.0,0.5425]
[1757520718830,0.1954,4388.1,4388.0,0.8439]
[1757520722634,0.701,4388.1,4388.0,0.8439]
[1757520723034,0.3994,4388.1,4388.0,0.8439]
[1757520724739,0.1954,4388.1,4388.0,0.8439]
[1757520727033,0.234,4388.3,4388.2,0.4168]
[1757520727336,0.4294,4388.6,4388.5,0.8439]
[1757520727838,0.6334,4388.6,4388.5,0.8439]
[1757520728332,0.935,4388.6,4388.5,0.8439]
[1757520729635,0.935,4388.6,4388.5,0.5077]
[1757520730537,0.935,4388.6,4388.1,0.3014]
[1757520730739,0.935,4388.6,4388.5,0.5077]
[1757520731239,0.6334,4388.6,4388.5,0.8439]
[1757520731535,0.4294,4388.6,4388.5,0.8439]
[1757520731738,13.397,4389.2,4389.1,0.4168]
[1757520731934,0.4294,4389.2,4389.1,0.7182]
[1757520732132,0.935,4389.2,4388.0,3.5675]
[1757520732334,0.1954,4388.1,4388.0,4.2857]
[1757520732533,3.5094,4388.7,4388.5,0.5425]
[1757520732534,0.4294,4388.6,4388.5,0.5425]
[1757520732733,0.935,4388.6,4388.5,0.5077]
[1757520732941,0.935,4388.6,4388.1,0.3014]
[1757520733137,0.3994,4388.2,4388.1,0.7182]
[1757520733938,0.701,4388.2,4388.1,0.3014]
[1757520734137,0.935,4388.2,4388.1,0.3014]
[1757520734640,0.935,4388.2,4388.1,0.5077]
[1757520735750,0.1954,4387.7,4387.6,0.7182]
[1757520737539,0.234,4387.8,4387.6,0.4168]
[1757520737743,0.234,4387.8,4387.7,0.7182]
[1757520738746,0.234,4388.0,4387.8,0.3014]
[1757520739748,0.1954,4388.0,4387.9,0.7182]
[1757520739944,0.6334,4388.0,4387.9,0.7182]
[1757520740142,0.1954,4388.0,4387.9,0.7182]
[1757520740447,0.4294,4388.0,4387.9,0.7182]
[1757520740840,0.1954,4388.0,4387.9,0.7182]
[1757520741036,0.3994,4388.3,4388.2,0.7182]
[1757520741242,0.935,4388.3,4388.2,0.7182]
[1757520741638,0.701,4388.3,4388.2,0.5077]
[1757520741847,0.935,4388.3,4388.2,0.5077]
[1757520742048,0.935,4388.3,4388.0,0.1257]
[1757520742243,0.701,4387.7,4387.6,0.3014]
[1757520742451,0.701,4387.7,4387.6,0.7182]
[1757520742649,0.3994,4387.7,4387.6,0.7182]
[1757520745148,3.9088,4387.7,4387.1,2.02806629]
[1757520745353,0.3994,4387.2,4387.1,0.5077]
[1757520745654,0.6334,4387.2,4387.1,0.7182]
[1757520746453,0.4294,4387.2,4387.1,0.7182]
[1757520747252,0.6328,4387.2,4387.1,0.7182]
[1757520747456,0.9533,4387.2,4387.1,0.7182]
[1757520748153,0.9533,4387.2,4387.1,0.5077]
[1757520748356,4.1611,4387.2,4386.6,0.2961]
[1757520750154,3.9271,4387.2,4386.6,0.2961]
[1757520750351,0.2126,4386.7,4386.6,0.4067]
[1757520750556,0.2126,4386.7,4386.6,0.7028]
[1757520750857,3.2078,4387.2,4387.1,0.4067]
[1757520751056,3.4418,4387.2,4387.1,0.7028]
[1757520751557,3.8578,4387.2,4387.1,0.7028]
[1757520751958,3.6238,4387.2,4387.1,0.7028]
[1757520752261,3.6544,4387.2,4387.1,0.7028]
[1757520752560,4.1783,4387.2,4387.1,0.2961]
[1757520752859,4.1783,4387.2,4387.1,0.4982]
[1757520753156,3.8578,4387.2,4386.6,0.2961]
[1757520753363,3.8578,4387.2,4386.6,0.7028]
[1757520753364,0.416,4386.7,4386.6,0.7028]
[1757520753550,0.65,4386.7,4386.6,0.7028]
[1757520753757,0.9705,4386.7,4386.6,0.7028]
[1757520753959,0.9705,4386.7,4386.1,0.2961]
[1757520755964,0.2126,4386.2,4386.1,0.4067]
[1757520756158,0.65,4386.2,4386.1,0.7028]
[1757520756966,0.9705,4386.2,4386.1,0.4982]
[1757520757362,0.65,4386.2,4386.1,0.7028]
[1757520759056,0.4466,4386.2,4386.1,0.7028]
[1757520759457,3.5283,4386.6,4386.5,0.5258]
[1757520759458,3.6238,4386.6,4386.5,0.5258]
[1757520759766,4.1783,4386.6,4386.5,0.8219]
[1757520760468,3.9443,4386.6,4386.5,0.8219]
[1757520760772,4.1783,4386.6,4386.5,0.8219]
[1757520761069,3.6238,4386.6,4386.5,0.8219]
[1757520761365,3.8578,4386.6,4386.5,0.8219]
[1757520761562,0.234,4386.6,4386.5,1.23213]
[1757520761762,3.2078,4387.2,4387.0,0.5258]
[1757520761969,0.234,4387.1,4387.0,0.5258]
[1757520762463,0.65,4387.1,4387.0,0.8219]
[1757520762666,0.9705,4387.1,4387.0,0.8219]
[1757520762862,0.9705,4387.1,4387.0,0.4982]
[1757520763067,0.2126,4386.7,4386.6,0.4067]
[1757520763369,0.65,4386.7,4386.6,0.7028]
[1757520764265,0.9705,4386.7,4386.6,0.4982]
[1757520765569,0.3205,4386.6,4385.8,0.2961]
[1757520765763,0.7365,4385.9,4385.8,0.4982]
[1757520765963,0.416,4385.9,4385.8,0.7028]
[1757520766171,0.234,4386.0,4385.8,0.7028]
[1757520766474,3.4204,4386.2,4386.1,0.4067]
[1757520766669,3.6544,4386.2,4386.1,0.7028]
[1757520767075,3.4418,4386.2,4386.1,0.7028]
[1757520767869,3.6544,4386.2,4386.1,0.7028]
[1757520768077,3.8578,4386.2,4386.1,0.7028]
[1757520768373,4.1783,4386.2,4386.1,0.7028]
[1757520768966,3.8578,4386.2,4386.1,0.7028]
[1757520769174,3.6544,4386.2,4386.1,0.7028]
[1757520770071,3.4204,4386.2,4386.1,0.7028]
[1757520770278,3.9443,4386.2,4386.1,0.4982]
[1757520772275,3.8578,4386.2,4386.1,0.7028]
[1757520772669,3.6238,4386.2,4386.1,0.7028]
[1757520772976,4.1783,4386.2,4386.1,0.7028]
[1757520773172,3.8578,4386.2,4386.1,0.7028]
[1757520773567,3.4418,4386.2,4386.1,0.7028]
[1757520773771,3.2078,4386.2,4386.1,0.7028]
[1757520773972,3.6544,4386.2,4386.1,0.7028]
[1757520774772,3.8578,4386.2,4386.1,0.7028]
[1757520776682,4.1783,4386.2,4386.1,0.7028]
[1757520778079,4.1783,4386.2,4386.1,0.4982]
[1757520778280,4.1783,4386.2,4385.6,0.2923]
[1757520778580,0.2114,4385.8,4385.7,0.692]
[1757520778778,0.2114,4385.8,4385.7,1.10231]
[1757520778974,0.2114,4386.1,4386.0,0.8128]
[1757520779181,0.6487,4386.1,4386.0,0.8128]
[1757520779375,0.9535,4386.1,4386.0,0.8128]
[1757520779573,0.6487,4386.1,4386.0,0.8128]
[1757520779981,3.2078,4386.2,4386.0,0.8128]
[1757520780178,0.4454,4386.1,4386.0,0.8128]
[1757520780781,0.6487,4386.1,4386.0,0.8128]
[1757520781283,0.4454,4386.1,4386.0,0.8128]
[1757520781778,0.2114,4386.1,4386.0,0.5205]
[1757520781971,0.2114,4386.1,4386.0,4.13858]
[1757520782175,0.5388,4386.5,4386.0,4.13858]
[1757520782176,0.234,4386.3,4386.0,4.13858]
[1757520782375,0.234,4386.3,4386.2,0.692]
[1757520782578,0.4454,4386.3,4386.2,0.692]
[1757520784380,3.2078,4386.7,4386.3,1.02563]
[1757520784584,0.3048,4387.6,4387.0,1.22298]
[1757520784784,0.7195,4387.6,4387.5,0.1956]
[1757520784979,0.7195,4387.6,4387.5,0.2923]
[1757520785181,0.7195,4387.6,4387.1,0.2923]
[1757520785382,0.2114,4387.1,4387.0,0.5205]
[1757520785685,0.2114,4387.1,4387.0,0.93068]
[1757520785883,0.234,4387.2,4387.0,1.22298]
[1757520786083,0.7195,4387.9,4387.8,0.1956]
[1757520786280,0.9535,4387.9,4387.8,0.2923]
[1757520787179,0.4147,4387.2,4387.1,0.4879]
[1757520787386,0.4147,4386.4,4386.3,3.8998]
[1757520787587,3.4418,4386.8,4386.5,0.1208]
[1757520787881,3.2078,4387.3,4386.7,0.692]
[1757520788086,0.6487,4387.2,4387.1,0.692]
[1757520788584,0.9535,4387.2,4387.1,0.692]
[1757520788885,0.6487,4387.2,4387.1,0.692]
[1757520789093,0.4147,4387.2,4387.1,0.692]
[1757520789884,3.2078,4387.3,4387.2,0.2923]
[1757520790090,0.4147,4387.3,4387.2,0.3997]
[1757520790278,0.4147,4387.3,4387.0,0.1208]
[1757520790482,0.7195,4387.2,4387.1,0.1956]
[1757520790678,0.7195,4387.2,4387.1,0.692]
[1757520790885,0.4147,4387.2,4387.1,0.692]
[1757520791391,0.234,4387.4,4387.1,0.3997]
[1757520791588,0.234,4387.4,4387.2,0.2923]
[1757520791889,0.2114,4387.3,4387.2,0.3997]
[1757520792088,0.2114,4387.3,4387.2,0.692]
[1757520792588,0.7195,4387.3,4387.2,0.692]
[1757520792985,0.7195,4387.3,4387.2,0.2923]
[1757520793186,0.4147,4387.1,4387.0,0.6087]
[1757520793392,0.4147,4387.1,4387.0,0.8128]
[1757520794189,4.94744,4387.1,4386.3,3.2078]
[1757520794386,0.7195,4386.5,4386.4,0.2923]
[1757520794887,0.2033,4386.4,4386.3,0.1956]
[1757520795094,0.7195,4386.4,4386.3,0.4879]
[1757520795295,0.7195,4386.4,4386.3,0.692]
[1757520795489,0.4147,4386.4,4386.3,0.692]
[1757520797193,0.6487,4386.6,4386.5,0.8128]
[1757520797394,0.9535,4386.6,4386.5,0.8128]
[1757520797590,0.6487,4386.6,4386.5,0.8128]
[1757520797791,0.234,4386.6,4386.5,0.8128]
[1757520797994,0.2114,4387.3,4387.2,0.692]
[1757520798399,0.4147,4387.3,4387.2,0.692]
[1757520798598,0.7195,4387.3,4387.2,0.692]
[1757520800694,0.2114,4387.3,4387.2,0.692]
[1757520800887,0.4444,4387.6,4387.5,0.5205]
[1757520801095,0.9525,4387.6,4387.5,0.5205]
[1757520801495,0.9525,4387.6,4387.5,0.8128]
[1757520802201,0.6477,4387.6,4387.5,0.8128]
[1757520802802,0.2114,4387.6,4387.5,0.5205]
[1757520803196,3.4408,4387.8,4387.5,0.5205]
[1757520803396,3.4192,4388.3,4388.2,0.692]
[1757520803596,3.6522,4388.3,4388.2,0.692]
[1757520803797,3.8555,4388.3,4388.2,0.692]
[1757520804102,4.1603,4388.3,4388.2,0.692]
[1757520805598,3.8555,4388.3,4388.2,0.692]
[1757520805791,4.1603,4388.3,4388.2,0.692]
[1757520806594,3.8555,4388.3,4388.2,0.692]
[1757520807893,0.7175,4388.1,4388.0,0.3004]
[1757520808092,0.4243,4387.7,4387.6,0.516]
[1757520808296,0.4243,4387.7,4387.3,3.2078]
[1757520808503,0.7175,4387.6,4387.5,0.5083]
[1757520808703,0.0697,4387.5,4387.0,0.1208]
[1757520808905,0.7175,4387.0,4386.9,0.3004]
[1757520809099,0.6573,4387.0,4386.6,0.3004]
[1757520809299,0.7175,4386.9,4386.8,0.516]
[1757520809501,0.2114,4386.9,4386.8,0.7239]
[1757520809699,0.233,4387.0,4386.9,0.3004]
[1757520809900,1.14186044,4387.0,4386.9,0.3004]
[1757520810099,0.4243,4386.7,4386.6,0.516]
[1757520810305,0.4243,4386.7,4386.6,0.7239]
[1757520810606,0.7175,4386.7,4386.6,0.7239]
[1757520810996,1.20206044,4386.7,4386.6,0.7239]
[1757520813500,1.43506044,4386.7,4386.6,0.7239]
[1757520813804,1.43506044,4386.7,4386.1,0.3004]
[1757520814105,1.66296044,4386.7,4386.1,0.3004]
[1757520815008,0.48456044,4386.4,4386.1,0.3004]
[1757520815208,0.7175,4386.2,4386.1,0.516]
[1757520815708,0.7175,4386.2,4386.1,0.7239]
[1757520815908,1.20206044,4386.2,4386.1,0.7239]
[1757520816302,0.90886044,4386.2,4386.1,0.7239]
[1757520819214,0.69596044,4386.2,4386.1,0.7239]
[1757520819918,1.20206044,4386.2,4386.1,0.7239]
[1757520821409,0.90886044,4386.2,4386.1,0.7239]
[1757520822216,0.90886044,4386.2,4385.9,0.3004]
[1757520822413,0.4243,4385.7,4385.6,0.516]
[1757520822603,0.7175,4385.7,4385.6,0.516]
[1757520823007,0.7175,4385.7,4385.6,0.7239]
[1757520823515,1.20206044,4385.7,4385.6,0.516]
[1757520824420,1.20206044,4385.7,4385.6,0.7239]
[1757520825014,0.4243,4385.3,4385.1,3.2078]
[1757520825220,0.7175,4385.3,4385.2,0.516]
[1757520825416,0.2114,4385.3,4385.2,0.7239]
[1757520825620,0.69596044,4385.3,4385.2,0.7239]
[1757520825826,0.90886044,4385.3,4385.2,1.13426]
[1757520826519,0.90886044,4385.3,4385.2,0.7239]
[1757520827220,1.20206044,4385.3,4385.2,0.7239]
[1757520830127,1.20206044,4385.3,4385.2,0.516]
[1757520830329,1.20206044,4385.3,4385.2,0.3004]
[1757520831715,1.20206044,4385.3,4385.0,0.1209]
[1757520832019,0.7175,4385.2,4385.1,0.3004]
[1757520832622,1.20206044,4385.2,4385.1,0.516]
[1757520834122,1.43506044,4385.2,4385.1,0.516]
[1757520834327,1.43506044,4385.2,4385.1,0.3004]
[1757520834528,0.2932,4385.1,4385.0,0.2156]
[1757520834732,0.7175,4385.1,4385.0,0.516]
[1757520835636,1.20206044,4385.1,4385.0,0.516]
[1757520837230,1.43006044,4385.1,4385.0,0.516]
[1757520837531,1.43006044,4385.1,4384.8,0.33278]
[1757520837532,0.4159,4384.9,4384.8,1.05128]
[1757520838531,0.6489,4384.9,4384.8,1.05128]
[1757520838729,1.13346044,4384.9,4384.8,1.05128]
[1757520838930,0.90046044,4384.9,4384.8,1.05128]
[1757520839632,0.48456044,4384.9,4384.8,1.05128]
[1757520840328,0.48456044,4384.9,4384.8,5.05128]
[1757520840525,3.2078,4385.9,4385.8,0.7185]
[1757520840934,3.9418,4385.9,4385.8,0.7185]
[1757520841229,3.6237,4385.9,4385.5,0.1212]
[1757520841429,0.734,4385.8,4385.0,0.1212]
[1757520841627,0.967,4385.8,4385.1,0.3032]
[1757520841826,0.967,4385.8,4385.7,0.2062]
[1757520842027,0.967,4385.8,4385.7,0.5094]
[1757520842423,0.734,4385.8,4385.7,0.7185]
[1757520842628,0.4491,4385.8,4385.7,0.7185]
[1757520843436,0.2161,4385.8,4385.7,0.7185]
[1757520843936,0.4159,4385.8,4385.7,0.7185]
[1757520844136,0.734,4385.8,4385.7,0.7185]
[1757520844337,0.734,4385.8,4385.1,0.3032]
[1757520845638,0.4159,4385.2,4385.1,0.5094]
[1757520845836,0.734,4385.2,4385.1,0.5094]
[1757520847441,0.4159,4385.2,4385.1,0.7185]
[1757520847935,0.734,4385.6,4385.5,0.8397]
[1757520848139,3.2078,4385.9,4385.5,0.8397]
[1757520848339,0.233,4385.8,4385.6,0.3032]
[1757520848536,3.2078,4385.9,4385.5,0.1212]
[1757520848537,0.233,4385.9,4385.8,0.3032]
[1757520848840,0.233,4386.0,4385.8,0.7185]
[1757520849035,0.4491,4386.0,4385.9,0.7185]
[1757520849437,0.6489,4386.0,4385.9,0.7185]
[1757520850238,0.967,4386.0,4385.9,0.7185]
[1757520851540,0.734,4386.0,4385.9,0.7185]
[1757520851747,0.967,4386.0,4385.9,0.7185]
[1757520852342,1.0694,4386.0,4385.6,0.3032]
[1757520852540,0.734,4385.2,4385.1,0.5094]
[1757520852839,0.3181,4385.1,4384.9,0.3032]
[1757520853047,0.76530895,4385.0,4384.9,0.5094]
[1757520853649,0.76530895,4385.0,4384.9,0.7185]
[1757520854236,0.03130895,4385.0,4384.9,0.7185]
[1757520854948,3.4239,4385.8,4385.7,0.7185]
[1757520855648,4.1758,4385.8,4385.1,0.3032]
[1757520855841,0.4159,4385.2,4385.1,0.5094]
[1757520856041,0.4159,4385.2,4385.1,0.7185]
[1757520856247,0.734,4385.2,4385.1,0.7185]
[1757520856746,0.2161,4385.2,4385.1,0.7185]
[1757520856950,0.234,4385.4,4385.2,0.3032]
[1757520857148,0.4501,4385.4,4385.3,0.7185]
[1757520857348,0.2161,4385.4,4385.3,0.7185]
[1757520859349,0.4501,4385.6,4385.5,0.8397]
[1757520859742,0.234,4385.6,4385.5,0.8397]
[1757520860741,0.4501,4385.6,4385.5,0.8397]
[1757520861357,3.2078,4387.3,4386.5,0.1212]
[1757520861547,1.00485111,4387.2,4387.1,0.4153]
[1757520861746,1.0113907,4387.2,4387.1,0.4153]
[1757520862057,0.6499,4387.2,4387.1,0.7185]
[1757520863549,0.234,4387.2,4387.1,0.7185]
[1757520863851,3.2078,4387.3,4387.2,0.7185]
[1757520864651,3.6237,4387.3,4387.2,0.7185]
[1757520864949,3.2078,4387.3,4387.2,0.7185]
[1757520865655,3.6237,4387.3,4387.2,0.7185]
[1757520865857,3.9418,4387.3,4387.2,0.7185]
[1757520866357,0.734,4387.1,4386.6,3.2078]
[1757520866546,0.734,4386.8,4386.7,0.5094]
[1757520866754,0.734,4386.8,4386.5,0.1212]
[1757520866952,0.4159,4386.8,4386.2,0.316]
[1757520867357,0.7091,4386.8,4386.7,0.5159]
[1757520867857,0.74040895,4386.8,4386.7,0.5159]
[1757520868458,3.94820895,4386.8,4386.2,0.316]
[1757520868659,0.711,4386.6,4386.5,0.1999]
[1757520868857,0.74230895,4386.6,4386.5,0.5159]
[1757520869555,0.74230895,4386.6,4386.0,0.3211]
[1757520869556,0.2022,4386.1,4386.0,0.3211]
[1757520869752,0.2022,4386.1,4386.0,0.8499]
[1757520869950,0.74230895,4386.1,4386.0,0.8499]
[1757520870151,0.711,4385.4,4385.3,0.5159]
[1757520870663,0.4178,4385.4,4385.3,0.7287]
[1757520870859,0.44910895,4385.4,4385.3,0.7287]
[1757520872761,0.03130895,4385.4,4385.3,0.7287]
[1757520873261,0.23350895,4385.4,4385.3,0.7287]
[1757520873559,0.44910895,4385.4,4385.3,0.7287]
[1757520875169,0.23350895,4385.4,4385.3,0.7287]
[1757520875366,0.03130895,4385.4,4385.3,0.7287]
[1757520876469,0.44910895,4385.4,4385.3,0.7287]
[1757520876660,0.74230895,4385.4,4385.3,0.316]
[1757520876970,0.711,4385.2,4385.1,0.316]
[1757520877160,0.711,4385.2,4385.1,0.5159]
[1757520878071,0.74230895,4385.2,4385.1,0.5159]
[1757520879568,0.03130895,4385.2,4384.9,0.316]
[1757520879763,0.711,4385.0,4384.9,0.316]
[1757520879972,0.74230895,4385.0,4384.9,0.5159]
[1757520881173,0.74230895,4385.0,4384.8,0.33278]
[1757520881370,0.44910895,4385.0,4384.8,0.33278]
[1757520881571,0.711,4384.9,4384.8,0.33278]
[1757520881986,0.711,4384.9,4384.8,1.06148]
[1757520882181,0.74230895,4384.9,4384.8,1.06148]
[1757520882474,0.44910895,4384.9,4384.8,1.06148]
[1757520884672,0.74230895,4384.9,4384.8,0.64878]
[1757520884975,0.44910895,4384.9,4384.8,1.06148]
[1757520885677,0.74230895,4384.9,4384.8,1.06148]
[1757520886067,0.7736179,4384.9,4384.8,1.06148]
[1757520886267,0.4804179,4384.9,4384.8,1.06148]
[1757520889676,0.0626179,4384.9,4384.8,1.06148]
[1757520891473,0.0626179,4384.9,4384.8,1.47187]
[1757520891677,0.233,4385.4,4385.3,0.7287]
[1757520892069,3.2078,4385.6,4385.5,0.5356]
[1757520892269,3.2078,4385.6,4385.5,0.8516]
[1757520893779,0.4352,4385.9,4385.8,0.4127]
[1757520893976,0.4352,4385.9,4385.8,0.7287]
[1757520894380,0.2022,4385.9,4385.8,0.7287]
[1757520894576,0.4352,4386.1,4386.0,0.8516]
[1757520895675,0.6508,4386.1,4386.0,0.8516]
[1757520896273,0.2022,4385.5,4385.4,0.1999]
[1757520896478,0.2022,4385.5,4385.4,0.7287]
[1757520896479,0.711,4385.5,4385.4,0.7287]
[1757520896680,0.4178,4385.5,4385.4,0.7287]
[1757520897078,0.7112,4385.5,4385.4,0.5159]
[1757520897276,0.7112,4385.5,4385.1,0.3078]
[1757520897474,0.7012,4385.2,4385.1,0.5204]
[1757520897881,0.7012,4385.2,4385.1,0.7324]
[1757520898285,0.4078,4385.2,4385.1,0.7324]
[1757520899686,0.7012,4385.2,4384.8,0.33278]
[1757520899983,0.7012,4385.0,4384.9,0.7324]
[1757520900382,0.233,4385.4,4385.0,0.1279]
[1757520900687,0.4314,4385.4,4385.3,0.7324]
[1757520900989,0.9342,4385.4,4385.3,0.7324]
[1757520901386,0.7012,4385.4,4385.3,0.7324]
[1757520901685,0.7012,4385.2,4385.1,0.5204]
[1757520901882,0.2934,4385.1,4385.0,0.2126]
[1757520902083,0.4078,4385.1,4385.0,0.2126]
[1757520902286,0.4078,4385.1,4385.0,0.7324]
[1757520902287,0.7012,4385.1,4385.0,0.7324]
[1757520902485,0.7012,4385.1,4385.0,0.8603]
[1757520902990,0.4078,4385.1,4385.0,0.8603]
[1757520903182,0.7012,4385.1,4385.0,0.8603]
[1757520903388,0.1984,4385.1,4385.0,0.8603]
[1757520903780,3.2078,4385.8,4385.1,0.3078]
[1757520904089,3.8486,4385.8,4385.7,0.7324]
[1757520904590,3.6156,4385.8,4385.7,0.7324]
[1757520904787,3.8486,4385.8,4385.7,0.7324]
[1757520905587,4.142,4385.8,4385.1,0.3078]
[1757520906781,0.22803,4385.7,4385.1,0.3078]